bitfinex-derivatives/quotes_BTCF0:USTF0_20241120
["timestamp","ask_amount","ask_price","bid_price","bid_amount"]
[1732067569415,0.054235,92057.0,92052.0,0.3608]
[1732067569805,0.0374,92056.0,92052.0,0.3608]
[1732067570007,0.0374,92056.0,92051.0,0.19467708]
[1732067570204,0.0374,92056.0,92028.0,0.3608]
[1732067570205,0.054241,92046.0,92044.0,0.19467708]
[1732067570407,0.46690925,92045.0,92037.0,0.19467708]
[1732067570602,0.46690925,92045.0,92033.0,0.00162981]
[1732067570603,0.054246,92039.0,92034.0,0.19467708]
[1732067570804,0.46690925,92045.0,92033.0,0.19630689]
[1732067570805,0.092846,92038.0,92033.0,0.19630689]
[1732067571023,0.18460925,92038.0,92033.0,0.00162981]
[1732067571317,0.054247,92036.0,92033.0,0.00162981]
[1732067571521,0.0374,92035.0,92033.0,0.00162981]
[1732067572115,0.0374,92035.0,92033.0,0.05587881]
[1732067573414,0.0785,92038.0,92033.0,0.00162981]
[1732067573619,0.0785,92038.0,92037.0,0.054247]
[1732067574313,0.0376,92044.0,92043.0,0.054243]
[1732067574626,0.00056001,92045.0,92043.0,0.054243]
[1732067574812,0.05142538,92050.0,92045.0,0.054242]
[1732067575016,0.054243,92043.0,92040.0,0.05381387]
[1732067576008,0.054243,92043.0,92038.0,0.19467708]
[1732067576212,0.054243,92043.0,92041.0,0.054244]
[1732067576620,0.10610925,92045.0,92037.0,0.19467708]
[1732067576923,0.10610925,92038.0,92037.0,0.19467708]
[1732067577121,0.10610925,92038.0,92036.0,0.19467708]
[1732067577325,0.0373,92037.0,92036.0,0.19467708]
[1732067578528,0.0373,92037.0,92036.0,0.19472575]
[1732067579421,0.0373,92037.0,92035.0,0.054248]
[1732067580121,0.091547,92037.0,92035.0,0.054248]
[1732067580527,0.0373,92037.0,92033.0,0.00162981]
[1732067580715,0.054248,92035.0,92033.0,0.00162981]
[1732067581421,0.32596,92034.0,92033.0,0.00162981]
[1732067581728,0.32596,92034.0,92018.0,0.0051]
[1732067581918,0.054258,92018.0,92016.0,0.12304]
[1732067582119,0.054258,92018.0,92017.0,0.054258]
[1732067582514,0.054258,92018.0,92016.0,0.12304]
[1732067582515,0.3608,92025.0,92016.0,0.12304]
[1732067582732,0.0784,92033.0,92021.0,0.10610925]
[1732067583035,0.0784,92033.0,92031.0,0.05425]
[1732067583222,0.0784,92033.0,92026.0,0.054253]
[1732067583223,0.054251,92030.0,92026.0,0.054253]
[1732067583623,0.054251,92030.0,92028.0,0.054252]
[1732067583831,0.4392,92033.0,92015.0,0.00043]
[1732067584028,0.10610925,92025.0,92016.0,0.054259]
[1732067584233,0.054259,92016.0,92015.0,0.12347]
[1732067584727,0.054259,92016.0,92015.0,0.00043]
[1732067584921,0.415059,92016.0,92015.0,0.00043]
[1732067585123,0.3608,92025.0,92015.0,0.05469]
[1732067585330,0.0784,92033.0,92015.0,0.00043]
[1732067585331,0.4392,92033.0,92015.0,0.00043]
[1732067585532,0.4392,92033.0,92015.0,0.04083]
[1732067585533,0.054255,92023.0,92015.0,0.04083]
[1732067585723,0.054255,92023.0,92020.0,0.054256]
[1732067586924,0.054255,92023.0,92015.0,0.04083]
[1732067586925,0.054255,92023.0,92021.0,0.054256]
[1732067587135,0.054259,92016.0,92015.0,0.00043]
[1732067587630,0.054259,92016.0,92015.0,0.05469]
[1732067587943,0.32604,92015.0,91994.0,0.00010951]
[1732067588234,0.32604,92015.0,91978.0,1e-06]
[1732067588235,0.054281,91979.0,91978.0,1e-06]
[1732067588436,0.3608,91987.0,91978.0,1e-06]
[1732067588624,0.3608,91987.0,91982.0,0.054279]
[1732067588819,0.3608,91993.0,91983.0,0.054278]
[1732067589024,0.00010951,91992.0,91986.0,0.054276]
[1732067589226,0.00010951,91992.0,91986.0,0.054277]
[1732067589424,0.00010951,91992.0,91980.0,0.0397]
[1732067589425,0.00010951,91992.0,91984.0,0.12308]
[1732067589641,0.054275,91990.0,91984.0,0.12308]
[1732067589823,0.00010951,91992.0,91984.0,0.12308]
[1732067590020,0.054275,91989.0,91984.0,0.12308]
[1732067590223,0.054275,91989.0,91981.0,0.054279]
[1732067590427,0.054275,91989.0,91978.0,1e-06]
[1732067590428,0.05428,91980.0,91978.0,1e-06]
[1732067591026,0.00010951,91992.0,91978.0,0.10611025]
[1732067591224,0.05438351,91992.0,91985.0,0.054277]
[1732067592527,0.05438351,91992.0,91989.0,0.3608]
[1732067594544,0.054274,91991.0,91989.0,0.3608]
[1732067596743,0.054281,91979.0,91967.0,0.12308]
[1732067596931,0.054281,91979.0,91969.0,0.054286]
[1732067597244,0.054281,91979.0,91970.0,0.12308]
[1732067599926,0.054281,91979.0,91969.0,0.054287]
[1732067600128,0.054281,91979.0,91972.0,0.12308]
[1732067600641,0.054281,91979.0,91965.0,0.3608]
[1732067601042,0.093081,91979.0,91965.0,0.3608]
[1732067601837,0.093081,91979.0,91969.0,0.054287]
[1732067604846,0.093081,91979.0,91971.0,0.054285]
[1732067605247,0.093081,91979.0,91965.0,0.3608]
[1732067608139,0.054289,91966.0,91965.0,0.3608]
[1732067608650,0.3608,91974.0,91967.0,0.054288]
[1732067608851,0.054287,91968.0,91967.0,0.054288]
[1732067609054,0.05429,91964.0,91963.0,0.00163135]
[1732067609348,0.41509,91964.0,91963.0,0.00163135]
[1732067612148,0.41519951,91964.0,91963.0,0.00163135]
[1732067612357,0.054303,91942.0,91934.0,0.0416]
[1732067612663,0.054296,91954.0,91934.0,0.0416]
[1732067612664,0.054305,91938.0,91936.0,0.12284]
[1732067613156,0.16041225,91941.0,91940.0,0.054304]
[1732067613456,0.054303,91941.0,91940.0,0.415104]
[1732067614853,0.054301,91946.0,91942.0,0.054303]
[1732067615154,0.054301,91945.0,91942.0,0.054303]
[1732067615351,0.054303,91941.0,91940.0,0.3608]
[1732067618449,0.0414,91953.0,91940.0,0.3608]
[1732067618655,0.46690925,91955.0,91953.0,0.054296]
[1732067618656,0.00056001,91955.0,91953.0,0.054296]
[1732067618866,0.054291,91962.0,91958.0,0.054293]
[1732067619051,0.00010951,91964.0,91958.0,0.415093]
[1732067619052,0.054293,91959.0,91958.0,0.415093]
[1732067619251,0.054293,91959.0,91958.0,0.054293]
[1732067620349,0.054293,91959.0,91948.0,0.3608]
[1732067620549,0.10610925,91949.0,91948.0,0.3608]
[1732067620756,0.10610925,91949.0,91941.0,0.3907]
[1732067620757,0.10610925,91949.0,91942.0,0.12288]
[1732067621055,0.054302,91944.0,91942.0,0.12288]
[1732067621760,0.054298,91950.0,91942.0,0.12288]
[1732067622063,0.054284,91974.0,91944.0,0.3608]
[1732067622064,0.10610925,91963.0,91944.0,0.3608]
[1732067622367,0.0543,91948.0,91945.0,0.054301]
[1732067622554,0.10610925,91957.0,91945.0,0.054301]
[1732067622759,0.054299,91949.0,91935.0,0.3608]
[1732067623063,0.054306,91936.0,91935.0,0.3608]
[1732067626164,0.10610925,91945.0,91935.0,0.3608]
[1732067626165,0.054303,91941.0,91935.0,0.3608]
[1732067626356,0.054303,91941.0,91938.0,0.054305]
[1732067626561,0.054303,91941.0,91935.0,0.3608]
[1732067626758,0.054305,91938.0,91936.0,0.12288]
[1732067627766,0.48134,91948.0,91936.0,0.12288]
[1732067627767,0.40314,91948.0,91936.0,0.12288]
[1732067628067,0.054299,91949.0,91943.0,0.054302]
[1732067628266,0.054299,91948.0,91943.0,0.054302]
[1732067628468,0.0543,91947.0,91943.0,0.054302]
[1732067628672,0.10610925,91953.0,91943.0,0.054302]
[1732067628856,0.10610925,91953.0,91936.0,0.12288]
[1732067628857,0.10610925,91953.0,91939.0,0.054305]
[1732067629062,0.054301,91945.0,91939.0,0.054305]
[1732067629258,0.054302,91944.0,91939.0,0.054305]
[1732067629763,0.054302,91943.0,91939.0,0.054305]
[1732067629964,0.054303,91942.0,91939.0,0.054305]
[1732067630167,0.054306,91938.0,91936.0,0.12288]
[1732067630873,0.054306,91936.0,91935.0,0.3608]
[1732067631073,0.0543,91946.0,91929.0,0.26083771]
[1732067631074,0.05431,91930.0,91929.0,0.00291136]
[1732067631255,0.16041925,91930.0,91929.0,0.00163136]
[1732067632959,0.05431,91930.0,91929.0,0.00163136]
[1732067635864,0.16041925,91930.0,91929.0,0.00163136]
[1732067636066,0.16054078,91930.0,91914.0,0.12288]
[1732067636276,0.054316,91919.0,91914.0,0.12288]
[1732067636474,0.054316,91919.0,91907.0,0.36208]
[1732067636674,0.054316,91919.0,91911.0,0.12292]
[1732067638176,0.054316,91919.0,91906.0,0.3608]
[1732067640664,0.054316,91919.0,91900.0,0.1]
[1732067640868,0.054327,91901.0,91900.0,0.2226]
[1732067642478,0.054327,91901.0,91900.0,0.1]
[1732067642877,0.054327,91901.0,91900.0,0.22264]
[1732067643772,0.054327,91901.0,91900.0,0.1]
[1732067646567,0.415127,91901.0,91900.0,0.1]
[1732067648083,0.41449396,91901.0,91900.0,0.1]
[1732067652387,0.05369396,91901.0,91900.0,0.1]
[1732067653573,0.05369396,91901.0,91900.0,0.15066523]
[1732067654895,0.05369396,91901.0,91900.0,0.51146523]
[1732067656686,0.3608,91911.0,91903.0,0.054326]
[1732067656687,0.054323,91908.0,91903.0,0.054326]
[1732067656877,0.054323,91908.0,91904.0,0.093625]
[1732067657077,0.054323,91908.0,91905.0,0.054324]
[1732067657275,0.054323,91908.0,91906.0,0.12264]
[1732067657577,0.054323,91908.0,91906.0,0.176964]
[1732067657890,0.00163217,91920.0,91915.0,0.054318]
[1732067657891,0.05594817,91920.0,91915.0,0.054318]
[1732067658087,0.054317,91919.0,91915.0,0.054318]
[1732067658280,0.054317,91919.0,91917.0,0.054317]
[1732067658786,0.00012153,91930.0,91912.0,0.10610925]
[1732067658985,0.00012153,91930.0,91921.0,0.3608]
[1732067659186,0.054312,91927.0,91926.0,0.054312]
[1732067660385,0.054314,91924.0,91922.0,0.16114]
[1732067661594,0.10610925,91924.0,91921.0,0.3608]
[1732067661792,0.054315,91922.0,91921.0,0.48344]
[1732067662093,0.054315,91922.0,91921.0,0.12264]
[1732067662789,0.00012153,91930.0,91921.0,0.12264]
[1732067663088,0.054311,91928.0,91921.0,0.12264]
[1732067663385,0.00012153,91930.0,91922.0,0.0384]
[1732067663590,0.00012153,91930.0,91928.0,0.054311]
[1732067663983,0.05443153,91930.0,91929.0,0.12264]
[1732067666285,0.00012153,91930.0,91929.0,0.12264]
[1732067666487,0.00012153,91930.0,91929.0,0.16124]
[1732067667681,0.00012153,91930.0,91929.0,0.12264]
[1732067667878,0.00012153,91930.0,91928.0,0.3907]
[1732067668082,0.05431,91929.0,91928.0,0.3907]
[1732067668291,0.05431,91929.0,91928.0,0.51334]
[1732067669785,0.05431,91929.0,91928.0,0.3907]
[1732067669991,0.13341,91929.0,91928.0,0.3907]
[1732067670590,0.054317,91918.0,91917.0,0.12228]
[1732067671198,0.054317,91918.0,91917.0,0.17319049]
[1732067675095,0.054317,91918.0,91917.0,0.05091049]
[1732067675401,0.054317,91918.0,91900.0,0.4608]
[1732067675402,0.054327,91901.0,91900.0,0.4608]
[1732067675698,0.415127,91901.0,91900.0,0.22228]
[1732067676001,0.52123625,91901.0,91900.0,0.22228]
[1732067679389,0.52123625,91901.0,91900.0,0.0362]
[1732067680808,0.05433,91896.0,91895.0,0.00163152]
[1732067681435,0.054338,91883.0,91882.0,0.00012273]
[1732067681625,0.16044725,91883.0,91882.0,0.00012273]
[1732067681828,0.16044725,91883.0,91882.0,0.05234092]
[1732067682028,0.16044725,91883.0,91882.0,0.00012273]
[1732067684633,0.054338,91883.0,91882.0,0.00012273]
[1732067688893,0.054335,91888.0,91883.0,0.054337]
[1732067689093,0.0402,91894.0,91884.0,0.054337]
[1732067689298,0.054335,91887.0,91884.0,0.054337]
[1732067693602,0.054336,91886.0,91884.0,0.054337]
[1732067694908,0.054337,91884.0,91882.0,0.05101482]
[1732067695210,0.054337,91884.0,91883.0,0.12232]
[1732067695710,0.054337,91884.0,91882.0,0.12244273]
[1732067695711,0.16044625,91884.0,91882.0,0.12244273]
[1732067695894,0.16044625,91884.0,91882.0,0.00012273]
[1732067696099,0.0394,91883.0,91882.0,0.00012273]
[1732067697705,0.054337,91884.0,91882.0,0.00012273]
[1732067700193,0.3608,91890.0,91882.0,0.00012273]
[1732067700194,0.054334,91889.0,91882.0,0.00012273]
[1732067700400,0.054334,91889.0,91883.0,0.12196]
[1732067700609,0.05433,91897.0,91885.0,0.3608]
[1732067700908,0.05433,91897.0,91892.0,0.054332]
[1732067701309,0.05433,91897.0,91888.0,0.10610925]
[1732067701612,0.05433,91897.0,91892.0,0.054332]
[1732067702217,0.00012159,91900.0,91885.0,0.62010109]
[1732067702218,0.00012159,91900.0,91895.0,0.10610925]
[1732067702419,0.00012159,91900.0,91899.0,0.054328]
[1732067705010,0.3608,91925.0,91899.0,0.054328]
[1732067705011,0.0051,91920.0,91911.0,0.3907]
[1732067705208,0.22545348,91947.0,91911.0,0.3907]
[1732067705209,0.0051,91946.0,91945.0,0.054301]
[1732067705514,0.0406,91960.0,91945.0,0.22806925]
[1732067705811,0.0386,91968.0,91956.0,0.3608]
[1732067706114,0.054292,91960.0,91956.0,0.3608]
[1732067707010,0.00011925,91967.0,91956.0,0.3608]
[1732067707011,0.05440725,91967.0,91956.0,0.3608]
[1732067707212,0.05440725,91967.0,91966.0,0.3608]
[1732067707514,0.00011925,91967.0,91966.0,0.3608]
[1732067710811,0.00011925,91967.0,91965.0,0.12192]
[1732067712110,0.00011925,91967.0,91965.0,0.176209]
[1732067714719,0.00011925,91967.0,91965.0,0.054289]
[1732067715015,0.00011925,91967.0,91966.0,0.12188]
[1732067715921,0.00011925,91967.0,91964.0,0.3608]
[1732067716107,0.054289,91966.0,91964.0,0.3608]
[1732067716808,0.00011925,91967.0,91965.0,0.054289]
[1732067719415,0.00011925,91967.0,91962.0,0.51386]
[1732067719615,0.054289,91965.0,91962.0,0.3907]
[1732067720116,0.1062285,91967.0,91962.0,0.3907]
[1732067720117,0.3608,91963.0,91962.0,0.3907]
[1732067720317,0.05429,91964.0,91962.0,0.3907]
[1732067721514,0.0415,91966.0,91954.0,0.12188]
[1732067721719,0.054291,91962.0,91954.0,0.12188]
[1732067721918,0.054291,91962.0,91951.0,0.054297]
[1732067721919,0.054293,91959.0,91952.0,0.12188]
[1732067722319,0.054293,91959.0,91954.0,0.054296]
[1732067724024,0.054293,91959.0,91952.0,0.12188]
[1732067724025,0.054296,91954.0,91952.0,0.12188]
[1732067724231,0.054296,91954.0,91948.0,0.054299]
[1732067724526,0.054296,91954.0,91947.0,0.39079713]
[1732067724527,0.054296,91954.0,91950.0,0.054298]
[1732067724915,0.054292,91961.0,91956.0,0.054294]
[1732067725227,0.054292,91961.0,91949.0,0.12188]
[1732067725228,0.3608,91965.0,91961.0,0.054291]
[1732067725729,0.00011925,91967.0,91964.0,0.3608]
[1732067726030,0.0396,91983.0,91966.0,0.054289]
[1732067726216,0.054276,91988.0,91982.0,0.054279]
[1732067726415,0.054276,91988.0,91982.0,0.16038825]
[1732067727218,0.0417,91991.0,91982.0,0.16038825]
[1732067727420,0.054277,91987.0,91982.0,0.16038825]
[1732067728334,0.0417,91991.0,91982.0,0.16038825]
[1732067728627,0.054277,91986.0,91982.0,0.054279]
[1732067728832,0.0417,91991.0,91982.0,0.054279]
[1732067729022,0.0417,91991.0,91982.0,0.16038825]
[1732067729225,0.054273,91993.0,91982.0,0.16038825]
[1732067729425,0.054273,91993.0,91982.0,0.52118825]
[1732067729735,0.054273,91993.0,91971.0,0.3608]
[1732067729736,0.2122185,91983.0,91958.0,0.36243108]
[1732067729935,0.054293,91959.0,91958.0,0.00163108]
[1732067730119,0.52120225,91959.0,91958.0,0.00163108]
[1732067730519,0.054299,91948.0,91947.0,9.713e-05]
[1732067733819,0.054295,91955.0,91947.0,9.713e-05]
[1732067734127,0.054292,91960.0,91957.0,0.054294]
[1732067735825,0.054293,91959.0,91957.0,0.054294]
[1732067736026,0.0407,91965.0,91947.0,0.05168973]
[1732067736220,0.054295,91955.0,91953.0,0.054296]
[1732067736434,0.0407,91965.0,91954.0,0.3608]
[1732067736731,0.054293,91959.0,91954.0,0.3608]
[1732067736924,0.0407,91965.0,91954.0,0.3608]
[1732067737130,0.054293,91958.0,91954.0,0.3608]
[1732067737329,0.054293,91958.0,91956.0,0.054294]
[1732067738037,0.054293,91958.0,91954.0,0.3608]
[1732067738329,0.054293,91958.0,91954.0,0.415096]
[1732067738741,0.054293,91958.0,91956.0,0.054294]
[1732067739043,0.0051,91990.0,91970.0,0.054286]
[1732067739334,0.3608,91995.0,91957.0,0.90890596]
[1732067739335,0.054272,91995.0,91981.0,0.41508]
[1732067739538,0.054272,91994.0,91981.0,0.53672]
[1732067739721,0.3608,91993.0,91981.0,0.53672]
[1732067739919,0.054277,91986.0,91981.0,0.53672]
[1732067740122,0.054277,91986.0,91981.0,0.48244]
[1732067740335,0.3608,92002.0,91981.0,0.48244]
[1732067740536,0.054274,91992.0,91981.0,0.48244]
[1732067740729,0.054274,91991.0,91981.0,0.48244]
[1732067740922,0.054274,91991.0,91981.0,0.536719]
[1732067741125,0.054274,91991.0,91981.0,0.48244]
[1732067741427,0.054276,91988.0,91982.0,0.054279]
[1732067741622,0.054276,91988.0,91981.0,0.48244]
[1732067741821,0.054276,91988.0,91983.0,0.054278]
[1732067742633,0.054276,91988.0,91981.0,0.3608]
[1732067742634,0.054279,91983.0,91981.0,0.3608]
[1732067742834,0.054279,91983.0,91982.0,0.12164]
[1732067743140,0.054284,91973.0,91968.0,0.7559]
[1732067743332,0.054284,91973.0,91970.0,0.3608]
[1732067743632,0.054284,91973.0,91971.0,0.054285]
[1732067743838,0.054281,91980.0,91973.0,0.054284]
[1732067744133,0.054277,91986.0,91974.0,0.12164]
[1732067744334,0.054277,91986.0,91982.0,0.054279]
[1732067744631,0.054277,91985.0,91982.0,0.054279]
[1732067745433,0.054278,91984.0,91976.0,0.415083]
[1732067746032,0.054278,91984.0,91976.0,0.3608]
[1732067746336,0.054278,91984.0,91978.0,0.054281]
[1732067746938,0.054278,91984.0,91979.0,0.054281]
[1732067748548,0.15740596,91983.0,91968.0,0.36208]
[1732067748845,0.3608,91977.0,91963.0,0.3608]
[1732067749149,0.0397,91976.0,91963.0,0.3608]
[1732067749331,0.0815,91987.0,91970.0,0.15740596]
[1732067749638,0.14723307,91986.0,91974.0,0.054284]
[1732067749842,0.0815,91987.0,91974.0,0.054284]
[1732067749843,0.054281,91980.0,91974.0,0.054284]
[1732067750429,0.054281,91980.0,91975.0,0.054283]
[1732067750626,0.0815,91987.0,91975.0,0.054283]
[1732067750836,0.054281,91979.0,91975.0,0.054283]
[1732067751431,0.0815,91987.0,91975.0,0.054283]
[1732067751737,0.054284,91974.0,91973.0,0.3608]
[1732067751939,0.054284,91974.0,91973.0,0.4824]
[1732067752729,0.054289,91965.0,91964.0,0.3907]
[1732067753243,0.054289,91965.0,91963.0,0.1216]
[1732067753244,0.05429,91963.0,91962.0,0.00163071]
[1732067753446,0.3608,91969.0,91962.0,0.00163071]
[1732067753447,0.05429,91964.0,91962.0,0.00163071]
[1732067754048,0.0399,91963.0,91962.0,0.00163071]
[1732067755541,0.0812,91963.0,91962.0,0.00163071]
[1732067756745,0.0812,91963.0,91953.0,0.3907]
[1732067756746,0.054296,91954.0,91953.0,0.3907]
[1732067757044,0.054299,91948.0,91947.0,9.713e-05]
[1732067759850,0.05431,91929.0,91928.0,0.0051]
[1732067760145,0.054312,91927.0,91918.0,0.05194689]
[1732067760353,0.0051,91957.0,91926.0,0.75313134]
[1732067760547,0.3608,91959.0,91940.0,0.3608]
[1732067760548,0.054303,91942.0,91940.0,0.3608]
[1732067760740,0.054303,91941.0,91939.0,0.12204]
[1732067760937,0.054295,91956.0,91939.0,0.12204]
[1732067760938,0.00013418,91940.0,91939.0,0.12204]
[1732067761648,0.00013418,91940.0,91937.0,0.3608]
[1732067761649,0.054305,91938.0,91937.0,0.3608]
[1732067761846,0.054309,91932.0,91931.0,0.12204]
[1732067762249,0.054309,91932.0,91926.0,0.36243134]
[1732067762250,0.054312,91927.0,91926.0,0.36243134]
[1732067763149,0.054312,91927.0,91926.0,0.00163134]
[1732067764654,0.054317,91918.0,91917.0,0.00013967]
[1732067765642,0.054314,91923.0,91920.0,0.054316]
[1732067765841,0.054314,91923.0,91917.0,0.00013967]
[1732067765842,0.054314,91923.0,91921.0,0.054315]
[1732067766753,0.3608,91927.0,91917.0,0.00013967]
[1732067766945,0.0399,91934.0,91926.0,0.054312]
[1732067767548,0.05431,91930.0,91926.0,0.054312]
[1732067768549,0.05593815,91937.0,91928.0,0.3608]
[1732067768750,0.00163215,91937.0,91934.0,0.054307]
[1732067770751,0.00163215,91937.0,91936.0,0.415106]
[1732067772152,0.00163215,91937.0,91936.0,0.3608]
[1732067772366,0.054306,91936.0,91934.0,0.3907]
[1732067772666,0.0786,91935.0,91934.0,0.3907]
[1732067772851,0.0786,91935.0,91921.0,0.12204]
[1732067772852,0.2361233,91935.0,91921.0,0.12204]
[1732067773359,0.5969233,91935.0,91921.0,0.12204]
[1732067773658,0.2361233,91935.0,91918.0,0.12204]
[1732067773864,0.054314,91924.0,91918.0,0.176357]
[1732067774052,0.054314,91923.0,91918.0,0.176357]
[1732067775067,0.054313,91926.0,91922.0,0.415115]
[1732067775245,0.0786,91935.0,91922.0,0.3608]
[1732067775450,0.054311,91928.0,91922.0,0.3608]
[1732067775652,0.0786,91935.0,91922.0,0.3608]
[1732067775862,0.0391,91935.0,91931.0,0.3608]
[1732067776168,0.00163215,91937.0,91932.0,0.12208]
[1732067776466,0.00163215,91937.0,91935.0,0.054307]
[1732067777247,0.00163215,91937.0,91935.0,0.2118303]
[1732067777558,0.00013418,91940.0,91935.0,0.2118303]
[1732067777751,0.00013418,91940.0,91939.0,0.415105]
[1732067780667,0.00013418,91940.0,91939.0,0.67504541]
[1732067780970,0.00013418,91940.0,91938.0,0.25939866]
[1732067781163,0.054305,91939.0,91932.0,0.25939866]
[1732067781361,0.054308,91933.0,91930.0,0.38850679]
[1732067781563,0.0798,91938.0,91930.0,0.48976]
[1732067781861,0.00013418,91940.0,91930.0,0.74930679]
[1732067782060,0.00013418,91940.0,91939.0,0.415105]
[1732067782860,0.00013418,91940.0,91939.0,0.67472634]
[1732067783168,0.00013418,91940.0,91939.0,0.415105]
[1732067784156,0.00013418,91940.0,91939.0,0.67484404]
[1732067784658,0.00013418,91940.0,91939.0,0.415105]
[1732067786164,0.00013418,91940.0,91931.0,0.3907]
[1732067786165,0.054307,91934.0,91931.0,0.3907]
[1732067786366,0.00013418,91940.0,91931.0,0.3907]
[1732067786553,0.00013418,91940.0,91939.0,0.3608]
[1732067786554,0.05443818,91940.0,91939.0,0.3608]
[1732067787758,0.00013418,91940.0,91939.0,0.3608]
[1732067789864,0.00013418,91940.0,91939.0,0.4003]
[1732067790670,0.00013418,91940.0,91939.0,0.7515]
[1732067791077,0.00013418,91940.0,91939.0,0.3608]
[1732067791673,0.05443818,91940.0,91935.0,0.054307]
[1732067791970,0.05443818,91940.0,91930.0,0.3608]
[1732067792171,0.00013418,91940.0,91939.0,0.415105]
[1732067792667,0.05443818,91940.0,91939.0,0.3608]
[1732067794372,0.054307,91934.0,91931.0,0.183269]
[1732067794572,0.054307,91934.0,91932.0,0.3249202]
[1732067794876,0.00013418,91940.0,91937.0,0.054306]
[1732067794877,0.054305,91939.0,91937.0,0.054306]
[1732067795169,0.00013418,91940.0,91934.0,0.25983338]
[1732067795170,0.054307,91936.0,91934.0,0.25983338]
[1732067795570,0.00013418,91940.0,91934.0,0.25983338]
[1732067795772,0.00013418,91940.0,91935.0,0.31414038]
[1732067796871,0.00013418,91940.0,91937.0,0.62063338]
[1732067797070,0.00013418,91940.0,91938.0,0.054305]
[1732067797269,0.00013418,91940.0,91938.0,0.31413838]
[1732067798269,0.00013418,91940.0,91938.0,0.3792252]
[1732067798480,0.00013418,91940.0,91939.0,0.3249202]
[1732067798775,0.00013418,91940.0,91938.0,0.054305]
[1732067798965,0.00013418,91940.0,91939.0,0.3250587]
[1732067799971,0.00013418,91940.0,91937.0,0.3608]
[1732067800277,0.00013418,91940.0,91939.0,0.3608]
[1732067804272,0.00013418,91940.0,91939.0,0.6208557]
[1732067804566,0.00013418,91940.0,91939.0,0.3608]
[1732067805175,0.00013418,91940.0,91939.0,0.6208557]
[1732067806267,0.00013418,91940.0,91939.0,0.3608]
[1732067808592,0.00013418,91940.0,91939.0,0.74975164]
[1732067809179,0.00013418,91940.0,91924.0,0.61491602]
[1732067809180,0.00013418,91940.0,91934.0,0.38895164]
[1732067809484,0.3608,91937.0,91931.0,0.19993336]
[1732067809785,0.054312,91927.0,91926.0,0.00092]
[1732067809987,0.10590611,91932.0,91917.0,0.05077734]
[1732067809988,0.054315,91922.0,91920.0,0.32715691]
[1732067810292,0.054315,91922.0,91920.0,0.00163146]
[1732067812571,0.36144,91937.0,91920.0,0.00163146]
[1732067812776,0.00013418,91940.0,91939.0,0.054305]
[1732067812976,0.054295,91955.0,91949.0,0.054298]
[1732067813180,0.0767,91964.0,91950.0,0.3608]
[1732067813483,0.054294,91957.0,91951.0,0.054297]
[1732067813690,0.054295,91956.0,91951.0,0.054297]
[1732067813878,0.054296,91955.0,91951.0,0.054297]
[1732067814077,0.054296,91954.0,91951.0,0.054297]
[1732067815382,0.15745369,91958.0,91944.0,0.054301]
[1732067815980,0.15745369,91958.0,91940.0,0.71674423]
[1732067816176,0.054299,91949.0,91945.0,0.054301]
[1732067816486,0.054299,91949.0,91941.0,0.32512423]
[1732067816487,0.054292,91961.0,91949.0,0.054298]
[1732067816684,0.054293,91959.0,91957.0,0.054293]
[1732067818380,0.0371,91964.0,91962.0,0.05429]
[1732067818684,0.054285,91972.0,91970.0,0.054286]
[1732067819095,0.054285,91972.0,91953.0,0.13248]
[1732067819096,0.054287,91970.0,91956.0,0.054294]
[1732067819308,0.054291,91963.0,91956.0,0.054294]
[1732067819595,0.054291,91962.0,91956.0,0.054294]
[1732067819776,0.054291,91962.0,91952.0,0.49424]
[1732067819978,0.054291,91962.0,91957.0,0.054294]
[1732067820180,0.054291,91962.0,91952.0,0.49424]
[1732067820482,0.0372,91977.0,91971.0,0.054285]
[1732067820684,0.0372,91977.0,91964.0,0.054289]
[1732067820987,0.054287,91969.0,91961.0,0.3608]
[1732067821291,0.054288,91967.0,91962.0,0.054291]
[1732067821596,0.054286,91970.0,91965.0,0.054289]
[1732067822683,0.054286,91970.0,91952.0,0.4942]
[1732067822684,0.054296,91954.0,91952.0,0.00092]
[1732067822890,0.054297,91952.0,91945.0,0.00096]
[1732067823081,0.23515369,91953.0,91937.0,0.3659]
[1732067823394,0.054305,91938.0,91937.0,0.3608]
[1732067824179,0.054303,91942.0,91940.0,0.054304]
[1732067824396,0.054299,91948.0,91947.0,0.0543]
[1732067824991,0.0389,91953.0,91941.0,0.054303]
[1732067824992,0.0543,91946.0,91941.0,0.054303]
[1732067825203,0.0543,91946.0,91943.0,0.054302]
[1732067825692,0.054301,91945.0,91943.0,0.054302]
[1732067829592,0.0389,91953.0,91939.0,0.186784]
[1732067829888,0.0389,91953.0,91945.0,0.054301]
[1732067830395,0.093196,91953.0,91949.0,0.054298]
[1732067830892,0.00060001,91957.0,91946.0,0.3608]
[1732067831093,0.054297,91953.0,91952.0,0.054297]
[1732067831292,0.0388,91964.0,91946.0,0.3608]
[1732067831498,0.0051,91962.0,91948.0,0.054299]
[1732067831794,0.15745369,91960.0,91948.0,0.054299]
[1732067832295,0.15745369,91960.0,91946.0,0.3608]
[1732067832796,0.0543,91947.0,91938.0,0.0051]
[1732067833005,0.054306,91936.0,91927.0,0.36243157]
[1732067833183,0.054311,91928.0,91927.0,0.00163157]
[1732067833383,0.21176469,91928.0,91927.0,0.00163157]
[1732067834494,0.054311,91928.0,91923.0,0.054314]
[1732067834694,0.054307,91934.0,91925.0,0.3608]
[1732067834990,0.054312,91927.0,91925.0,0.3608]
[1732067835198,0.054313,91925.0,91923.0,0.054314]
[1732067836696,0.0794,91935.0,91916.0,0.3608]
[1732067836893,0.054314,91924.0,91916.0,0.3608]
[1732067837200,0.054314,91924.0,91919.0,0.054316]
[1732067838701,0.054314,91924.0,91916.0,0.3608]
[1732067839084,0.054314,91924.0,91922.0,0.054314]
[1732067840897,0.10594668,91927.0,91916.0,0.3608]